bitfinex-derivatives/quotes_ETHF0:USTF0_20241102
["timestamp","ask_amount","ask_price","bid_price","bid_amount"]
[1730553865147,1.86059033,2497.8,2497.7,0.28032]
[1730553865650,0.8552,2497.9,2497.5,1.90579033]
[1730553865853,2.09698261,2497.6,2497.5,0.74425]
[1730553866058,2.09698261,2497.7,2497.6,1.72222033]
[1730553866351,3.6265,2498.0,2497.8,0.28031]
[1730553866352,2.62122826,2497.9,2497.8,0.28031]
[1730553866663,2.62122826,2497.9,2497.8,2.71074559]
[1730553866852,2.62122826,2497.9,2497.8,1.26885526]
[1730553867859,0.4187,2498.0,2497.9,0.2803]
[1730553867860,3.03992826,2498.0,2497.9,0.2803]
[1730553868060,3.03992826,2498.0,2497.9,0.83644526]
[1730553868257,3.03992826,2498.0,2497.9,0.2803]
[1730553868455,3.03992826,2498.0,2497.9,0.83639493]
[1730553869355,0.4187,2498.0,2497.9,0.2803]
[1730553869558,3.03939885,2498.0,2497.9,0.2803]
[1730553869755,0.4187,2498.0,2497.9,0.2803]
[1730553869960,3.03943614,2498.0,2497.9,0.2803]
[1730553873063,2.62073614,2498.0,2497.9,0.2803]
[1730553873269,4.06262647,2498.1,2497.9,0.55592075]
[1730553873454,2.62073614,2498.0,2497.9,0.2803]
[1730553874160,3.06173614,2498.0,2497.9,0.2803]
[1730553875468,4.78391647,2498.0,2497.9,0.2803]
[1730553875770,4.50362647,2498.0,2497.9,0.2803]
[1730553876163,4.50362647,2498.0,2497.4,3.2078]
[1730553876362,2.37687726,2497.6,2497.5,0.83620323]
[1730553876563,2.90106614,2497.6,2497.1,2.74009033]
[1730553876868,1.57218817,2497.3,2497.2,1.72574213]
[1730553877059,1.57218817,2497.3,2497.2,0.28038]
[1730553877261,1.57218817,2497.3,2497.2,0.83629293]
[1730553878965,1.57218817,2497.3,2497.2,0.28038]
[1730553879163,1.57218817,2497.3,2497.2,0.83597653]
[1730553879363,1.57218817,2497.3,2497.2,1.26774037]
[1730553880157,1.57218817,2497.3,2497.2,0.71228]
[1730553882272,1.57218817,2497.4,2497.3,0.28037]
[1730553884276,1.57218817,2497.4,2497.3,0.71407]
[1730553887180,0.441,2497.5,2497.4,0.28036]
[1730553891480,2.81760089,2497.5,2497.4,0.28036]
[1730553892876,2.53725089,2497.5,2497.4,0.28036]
[1730553894289,0.441,2497.5,2497.4,0.28036]
[1730553894584,2.5333646,2497.5,2497.4,0.28036]
[1730553894786,2.8137146,2497.5,2497.4,0.28036]
[1730553894979,2.5333646,2497.5,2497.4,0.28036]
[1730553895182,0.441,2497.5,2497.4,0.28036]
[1730553897083,2.53412779,2497.5,2497.4,0.28036]
[1730553897386,0.441,2497.5,2497.4,0.28036]
[1730553897688,2.5345574,2497.5,2497.4,0.28036]
[1730553898485,0.441,2497.5,2497.4,0.28036]
[1730553900186,0.72135,2497.5,2497.4,0.28036]
[1730553901281,4.445,2497.5,2497.4,0.28036]
[1730553901481,7.34608614,2497.5,2497.4,0.28036]
[1730553901682,0.28036,2497.4,2497.3,0.28036]
[1730553901892,3.81579408,2497.4,2497.3,0.28036]
[1730553903982,3.53543408,2497.4,2497.3,0.28036]
[1730553904188,1.44189033,2497.4,2497.3,0.28036]
[1730553905293,3.53543296,2497.4,2497.3,0.28036]
[1730553905495,2.09354263,2497.4,2497.3,0.28036]
[1730553905690,3.97643296,2497.5,2497.0,9.64106991]
[1730553905988,3.97643296,2497.5,2497.2,0.28038]
[1730553905989,1.57017975,2497.3,2497.2,0.28038]
[1730553906194,1.57017975,2497.3,2497.2,1.68533381]
[1730553906491,1.57017975,2497.3,2497.2,3.12722414]
[1730553906687,1.57017975,2497.4,2497.3,0.28037]
[1730553907193,1.57017975,2497.4,2497.3,0.8358171]
[1730553907493,2.09354263,2497.5,2497.4,0.28036]
[1730553912591,0.4433,2497.5,2497.4,0.28036]
[1730553913097,2.5390308,2497.5,2497.4,0.28036]
[1730553913394,0.4433,2497.5,2497.4,0.28036]
[1730553913696,2.53922298,2497.5,2497.4,0.28036]
[1730553914089,4.50592647,2497.5,2497.2,0.8496]
[1730553914290,4.50592647,2497.5,2497.0,4.7848]
[1730553914291,1.44189033,2497.3,2497.0,4.7848]
[1730553914488,3.53801479,2497.3,2497.2,0.28038]
[1730553914689,3.53801479,2497.3,2497.2,4.84107901]
[1730553915191,3.53801479,2497.3,2497.2,0.83627901]
[1730553915696,3.53801479,2497.3,2497.2,0.83635404]
[1730553916188,3.53801479,2497.3,2497.2,6.28304437]
[1730553916189,2.09612446,2497.3,2497.2,6.28304437]
[1730553916689,1.57243556,2497.3,2497.2,7.17265396]
[1730553916892,2.09612446,2497.4,2497.3,0.28037]
[1730553917089,2.09612446,2497.4,2497.3,1.27234404]
[1730553917991,2.09612446,2497.4,2497.3,2.16208958]
[1730553918990,2.09612446,2497.5,2497.3,1.88171958]
[1730553919195,2.62073614,2497.6,2497.5,0.28035]
[1730553919394,2.62073614,2497.6,2497.5,0.83632404]
[1730553920495,2.62073614,2497.6,2497.5,1.7265801]
[1730553920698,2.62073614,2497.6,2497.5,0.83632404]
[1730553920893,2.79959033,2497.7,2497.6,0.28033]
[1730553921197,2.79959033,2497.7,2497.6,0.83630404]
[1730553922991,2.79959033,2497.7,2497.6,0.83704051]
[1730553923591,1.44189033,2497.7,2497.6,0.83704051]
[1730553923892,1.44189033,2497.7,2497.6,1.72769327]
[1730553923893,0.4371,2497.7,2497.6,1.72769327]
[1730553924195,3.14424439,2497.9,2497.6,6.8932536]
[1730553924388,2.62550591,2497.8,2497.7,2.18488327]
[1730553924897,2.62550591,2497.8,2497.7,6.18888327]
[1730553925302,2.09984725,2497.8,2497.7,6.18888327]
[1730553926288,2.09984725,2497.9,2497.7,5.90856327]
[1730553926492,3.06260591,2498.0,2497.9,0.2803]
[1730553926703,3.06260591,2498.0,2497.9,0.83652145]
[1730553926991,2.62550591,2498.0,2497.9,4.83972145]
[1730553927297,2.62362218,2498.1,2498.0,0.28029]
[1730553927487,2.62362218,2498.1,2498.0,1.25631145]
[1730553927692,2.72709033,2498.2,2498.1,0.28028]
[1730553929887,1.44189033,2498.4,2498.3,0.28026]
[1730553930092,1.89719033,2498.4,2498.3,0.28026]
[1730553930391,4.51922035,2498.4,2498.3,0.28026]
[1730553931299,1.89719033,2498.4,2498.3,0.28026]
[1730553931698,4.51922035,2498.4,2498.3,0.28026]
[1730553931996,4.79947035,2498.4,2498.2,0.28026]
[1730553932196,1.44189033,2498.3,2498.2,0.28026]
[1730553933504,3.53729519,2498.3,2498.2,0.28026]
[1730553935692,1.44189033,2498.3,2498.2,0.28026]
[1730553937506,3.01248775,2498.3,2498.2,0.28026]
[1730553940512,1.57059742,2498.3,2498.2,0.28026]
[1730553941113,1.57059742,2498.5,2498.4,0.28024]
[1730553941405,1.57059742,2498.6,2498.5,0.28023]
[1730553941611,1.99679742,2498.6,2498.5,0.28023]
[1730553942611,3.43868775,2498.6,2498.5,0.28023]
[1730553945305,0.4262,2498.6,2498.5,0.28023]
[1730553945810,1.99679742,2498.6,2498.5,0.28023]
[1730553946204,0.4262,2498.6,2498.5,0.28023]
[1730553951517,1.86809033,2498.6,2498.5,0.28023]
[1730553951705,3.43868775,2498.6,2498.5,0.28023]
[1730553953616,0.28024,2498.5,2498.1,0.28028]
[1730553953814,1.44189033,2498.2,2498.1,0.28028]
[1730553954716,0.4211,2498.3,2498.2,0.28027]
[1730553955611,1.99009198,2498.3,2498.2,0.28027]
[1730553957010,0.4211,2498.3,2498.2,0.28027]
[1730553958016,1.99009198,2498.3,2498.2,0.28027]
[1730553959808,5.19789198,2498.3,2498.2,0.28027]
[1730553960012,5.19887722,2498.3,2498.2,0.28027]
[1730553961424,3.6289,2498.3,2498.2,0.28027]
[1730553961919,2.51308931,2498.3,2498.2,0.28027]
[1730553963313,0.4211,2498.3,2498.2,0.28027]
[1730553963720,2.5161661,2498.3,2498.2,0.28027]
[1730553963926,0.4211,2498.3,2498.2,0.28027]
[1730553965523,3.04313002,2498.3,2498.2,0.28027]
[1730553965721,0.4211,2498.3,2498.2,0.28027]
[1730553965917,2.51691922,2498.3,2498.2,0.28027]
[1730553967323,0.4211,2498.3,2498.2,0.28027]
[1730553968318,3.04313002,2498.3,2498.2,0.28027]
[1730553970429,3.04313002,2498.3,2498.2,0.83563939]
[1730553972621,2.62203002,2498.3,2498.2,0.83563939]
[1730553973625,2.62203002,2498.3,2498.2,0.55536939]
[1730553973626,2.62376639,2498.3,2498.2,0.55536939]
[1730553973830,2.62376639,2498.3,2498.2,0.83578858]
[1730553974231,0.8571,2498.4,2498.2,0.55551858]
[1730553974430,0.8571,2498.4,2498.1,1.9789]
[1730553974431,0.8571,2498.4,2498.3,0.28026]
[1730553978828,2.62407184,2498.4,2498.3,0.28026]
[1730553979033,2.62407184,2498.5,2498.3,6.88783002]
[1730553979336,2.62407184,2498.5,2498.4,2.15937939]
[1730553979736,2.62383451,2498.5,2498.4,1.87913939]
[1730553979929,2.62383451,2498.5,2498.4,1.27116184]
[1730553980229,2.62383451,2498.6,2498.5,0.28023]
[1730553980436,2.62383451,2498.6,2498.5,1.71165184]
[1730553980832,2.62383451,2498.6,2498.5,3.15339966]
[1730553981036,2.62383451,2498.6,2498.5,4.04149888]
[1730553981224,2.62383451,2498.6,2498.5,4.04148156]
[1730553982635,2.62383451,2498.8,2498.7,0.28021]
[1730553982834,2.62383451,2498.8,2498.7,0.83527201]
[1730553983434,5.83163451,2498.8,2498.7,0.83527201]
[1730553983831,2.62383451,2498.8,2498.7,0.83502929]
[1730553984227,2.62383451,2498.8,2498.7,0.28021]
[1730553984436,2.62383451,2498.8,2498.7,0.83499063]
[1730553985732,1.44189033,2498.9,2498.7,0.55478063]
[1730553985932,1.44189033,2498.9,2498.8,0.2802]
[1730553989640,3.6518,2499.0,2498.6,1.44189033]
[1730553989842,3.6518,2499.0,2498.9,0.28019]
[1730553990248,0.444,2499.0,2498.9,0.28019]
[1730553990638,0.9102,2499.1,2499.0,0.28018]
[1730553991138,0.9102,2499.1,2499.0,0.73238]
[1730553991740,0.4646,2499.2,2499.1,0.28017]
[1730553991938,9.87763031,2499.5,2499.2,0.28015]
[1730553991939,0.8532,2499.4,2499.2,0.28015]
[1730553992138,2.29509033,2499.4,2499.0,1.89409033]
[1730553992345,1.72204033,2499.2,2499.0,0.28017]
[1730553992646,1.44189033,2499.1,2499.0,0.28018]
[1730553992849,1.44189033,2499.1,2499.0,0.01]
[1730553993049,4.06151904,2499.1,2499.0,0.01]
[1730553993235,4.51641904,2499.1,2499.0,0.01]
[1730553993749,1.89679033,2499.1,2499.0,0.29018]
[1730553995450,0.4549,2499.1,2499.0,0.29018]
[1730553995646,2.54967047,2499.1,2499.0,0.29018]
[1730553996149,0.4549,2499.1,2499.0,0.29018]
[1730553996645,2.54942916,2499.1,2499.0,0.29018]
[1730553998550,0.4549,2499.1,2499.0,0.29018]
[1730553998740,2.54942916,2499.1,2499.0,0.29018]
[1730553999244,0.4549,2499.1,2499.0,0.71118]
[1730554000046,2.09452916,2499.2,2499.1,0.28017]
[1730554000356,0.4467,2499.2,2499.1,0.28017]
[1730554000542,2.01658865,2499.2,2499.1,0.28017]
[1730554000743,0.4467,2499.2,2499.1,0.28017]
[1730554001344,2.01643879,2499.2,2499.1,0.28017]
[1730554002754,0.4467,2499.2,2499.1,0.28017]
[1730554004244,2.01606648,2499.2,2499.1,0.28017]
[1730554012555,2.01630714,2499.2,2499.1,0.28017]
[1730554013355,0.4467,2499.2,2499.1,0.28017]
[1730554013548,2.01641574,2499.2,2499.1,0.28017]
[1730554014462,0.4467,2499.2,2499.1,0.28017]
[1730554017257,2.54122916,2499.2,2499.1,0.28017]
[1730554017950,0.4467,2499.2,2499.1,0.28017]
[1730554018551,2.54122916,2499.2,2499.1,0.28017]
[1730554021566,2.54122916,2499.2,2499.1,4.28177]
[1730554022366,2.54122916,2499.2,2499.1,0.28017]
[1730554023074,2.54122916,2499.2,2499.1,1.72206033]
[1730554023375,2.54122916,2499.2,2499.1,6.27761694]
[1730554023376,2.09452916,2499.2,2499.1,6.27761694]
[1730554024282,2.09452916,2499.2,2499.1,2.27601694]
[1730554025273,2.61962871,2499.3,2499.2,0.28015]
[1730554025479,2.61962871,2499.3,2499.2,0.83410661]
[1730554026481,2.61962871,2499.3,2499.2,0.83445147]
[1730554026875,2.61962871,2499.3,2499.2,0.83444391]
[1730554027074,2.61962871,2499.3,2499.2,0.83443201]
[1730554030173,2.61962871,2499.3,2499.2,1.72098581]
[1730554030174,2.09837301,2499.3,2499.2,1.72098581]
[1730554030372,1.57368373,2499.3,2499.2,4.28175]
[1730554030673,1.57368373,2499.4,2499.3,0.28014]
[1730554030866,1.57368373,2499.4,2499.3,7.16325135]
[1730554033375,1.57368373,2499.5,2499.3,6.88311135]
[1730554033583,1.5725692,2499.5,2499.4,3.16146644]
[1730554034073,1.5725692,2499.5,2499.4,7.16224487]
[1730554034273,2.56237301,2499.6,2499.4,6.88211487]
[1730554034479,2.56237301,2499.6,2499.5,0.28012]
[1730554034680,2.56237301,2499.6,2499.5,0.83363352]
[1730554034878,2.56237301,2499.6,2499.5,1.38710365]
[1730554035080,2.56237301,2499.6,2499.5,0.83359013]
[1730554036190,2.56237301,2499.6,2499.5,0.28012]
[1730554036377,2.56237301,2499.6,2499.5,0.83356742]
[1730554037175,2.56237301,2499.6,2499.5,0.83355043]
[1730554037379,0.464,2499.6,2499.5,0.28012]
[1730554037885,2.56044138,2499.6,2499.5,0.8335442]
[1730554038982,2.56044138,2499.6,2499.5,0.28012]
[1730554039483,0.464,2499.6,2499.5,0.28012]
[1730554039686,2.56014836,2499.6,2499.5,0.28012]
[1730554040589,0.464,2499.6,2499.5,0.28012]
[1730554041088,2.56011602,2499.6,2499.5,0.28012]
[1730554041484,2.56011602,2499.6,2499.5,2.27534507]
[1730554041784,2.56011602,2499.6,2499.5,1.72201033]
[1730554041984,2.56011602,2499.6,2499.5,2.2753204]
[1730554042197,2.56011602,2499.6,2499.5,1.72201033]
[1730554043686,2.56011602,2499.6,2499.2,1.44189033]
[1730554043986,0.4477,2499.5,2499.4,0.28013]
[1730554044374,3.06732871,2499.5,2499.4,0.28013]
[1730554046990,0.4477,2499.5,2499.4,0.28013]
[1730554047489,3.06732871,2499.5,2499.4,0.28013]
[1730554047690,0.4477,2499.5,2499.4,0.70003]
[1730554047990,3.06732871,2499.5,2499.4,0.70003]
[1730554048287,0.4477,2499.5,2499.4,0.70003]
[1730554049381,2.54403943,2499.5,2499.4,0.70003]
[1730554049685,2.54403943,2499.5,2499.4,1.25374239]
[1730554050493,2.09633943,2499.5,2499.4,1.25374239]
[1730554050692,2.09633943,2499.5,2499.4,1.69664239]
[1730554051795,2.09633943,2499.5,2499.4,1.14293]
[1730554051983,2.09633943,2499.5,2499.4,1.69643209]
[1730554055397,2.09633943,2499.5,2499.4,1.14293]
[1730554059886,2.09633943,2499.5,2499.4,0.8337786]
[1730554060101,3.08362871,2499.6,2499.5,0.28012]
[1730554060393,3.95191,2499.6,2499.4,0.8337786]
[1730554060597,2.62166314,2499.5,2499.4,0.8337786]
[1730554060999,2.62166314,2499.5,2499.4,0.28013]
[1730554061397,3.08566314,2499.6,2499.3,1.44189033]
[1730554061598,2.0974819,2499.4,2499.3,1.72203033]
[1730554061798,2.0974819,2499.4,2499.3,2.27577309]
[1730554062498,2.62166314,2499.5,2499.3,2.27577309]
[1730554062499,2.62166314,2499.5,2499.4,0.28013]
[1730554063594,2.6224139,2499.5,2499.4,0.28013]
[1730554064303,3.95192,2499.6,2499.4,0.83411437]
[1730554064508,3.95192,2499.6,2499.4,0.28013]
[1730554064802,2.62261132,2499.5,2499.4,0.28013]
[1730554064997,2.62261132,2499.5,2499.4,0.83409096]
[1730554066295,0.464,2499.6,2499.5,0.28012]
[1730554066691,0.464,2499.6,2499.5,1.72201033]
[1730554067093,0.464,2499.6,2499.5,2.27598892]
[1730554067505,0.464,2499.6,2499.5,2.2760246]
[1730554068197,0.464,2499.6,2499.5,2.27615137]
[1730554071624,0.464,2499.6,2499.5,1.72201033]
[1730554071905,0.464,2499.6,2499.5,2.27636829]
[1730554073602,3.08806892,2499.6,2499.5,3.16345561]
[1730554075307,3.08806892,2499.6,2499.5,3.16373231]
[1730554077301,3.08806892,2499.6,2499.5,3.16395161]
[1730554078594,3.08806892,2499.6,2499.5,2.27660313]
[1730554078798,3.08806892,2499.6,2499.5,3.16420004]
[1730554079100,3.08806892,2499.6,2499.5,1.72201033]
[1730554079302,3.08806892,2499.6,2499.5,3.16421892]
[1730554079700,0.464,2499.6,2499.5,1.72232859]
[1730554079897,0.464,2499.6,2499.5,0.83481561]
[1730554080296,0.464,2499.6,2499.5,2.27670594]
[1730554081306,0.464,2499.6,2499.5,1.72201033]
[1730554081507,0.464,2499.6,2499.5,2.27679272]
[1730554081700,0.464,2499.6,2499.5,1.72201033]
[1730554081901,0.464,2499.6,2499.5,2.27679542]
[1730554084715,0.464,2499.6,2499.5,1.72201033]
[1730554084911,0.464,2499.6,2499.5,2.27694151]
[1730554088411,0.464,2499.6,2499.5,3.16459427]
[1730554089211,6.18680033,2499.6,2499.2,1.32569666]
[1730554089414,1.44189033,2499.3,2499.0,0.01]
[1730554089600,7.67155445,2499.2,2499.1,0.55513344]
[1730554089803,7.67155445,2499.2,2499.0,0.01]
[1730554089804,8.19548019,2499.2,2499.0,0.01]
[1730554090112,3.43030166,2499.1,2499.0,0.01]
[1730554090305,8.87379199,2499.1,2499.0,0.01]
[1730554090802,5.72366033,2499.1,2499.0,0.01]
[1730554091411,8.87083934,2499.1,2499.0,0.01]
[1730554092413,5.72366033,2499.1,2499.0,0.01]
[1730554092711,5.44349033,2499.1,2499.0,0.01]
[1730554092913,7.67517901,2499.2,2499.1,0.28017]
[1730554093102,1.3202,2499.2,2499.1,0.28017]
[1730554093817,4.528,2499.2,2499.1,0.28017]
[1730554095319,1.3202,2499.2,2499.1,0.28017]
[1730554095608,4.528,2499.2,2499.1,0.28017]
[1730554097213,1.3202,2499.2,2499.1,0.28017]
[1730554097415,4.528,2499.2,2499.1,0.28017]
[1730554097814,4.80816,2499.2,2499.0,0.29017]
[1730554098117,2.61971317,2499.1,2499.0,0.29017]
[1730554099403,3.93991317,2499.2,2499.0,0.01]
[1730554099713,7.1472911,2499.2,2499.1,0.28017]
[1730554100116,4.80816,2499.2,2499.0,0.29017]
[1730554100315,4.34135457,2499.1,2499.0,0.01]
[1730554100920,8.34295457,2499.1,2499.0,0.01]
[1730554101710,8.34262957,2499.1,2499.0,0.01]
[1730554104618,6.90073924,2499.1,2499.0,0.01]
[1730554105615,10.10853924,2499.1,2499.0,0.01]
[1730554107023,10.10853924,2499.1,2499.0,0.29018]
[1730554107724,4.0016,2499.1,2499.0,0.29018]
[1730554108326,8.86901957,2499.2,2499.1,0.28017]
[1730554108525,12.87061957,2499.2,2499.1,0.28017]
[1730554110727,9.66281957,2499.2,2499.1,0.28017]
[1730554111029,12.87061957,2499.2,2499.1,0.28017]
[1730554112529,5.38105957,2499.2,2499.1,0.28017]
[1730554112917,3.93916924,2499.2,2499.1,0.28017]
[1730554113120,2.09367226,2499.2,2499.0,1.87179033]
[1730554113322,2.09367226,2499.2,2499.1,0.28017]
[1730554116131,2.09387231,2499.2,2499.0,0.4299]
[1730554116432,2.09388024,2499.2,2499.1,0.28016]
[1730554119632,2.61896924,2499.3,2499.2,0.28015]
[1730554121331,3.03866924,2499.4,2499.3,0.28014]
[1730554121536,2.61896924,2499.4,2499.3,0.28014]
[1730554122128,2.61896924,2499.4,2499.3,0.74374]
[1730554123234,2.61896924,2499.4,2499.3,1.18084]
[1730554134347,3.6269,2499.5,2499.3,0.9007]
[1730554134548,3.6269,2499.5,2499.4,0.28013]
[1730554136855,0.4191,2499.5,2499.4,0.28013]
[1730554137153,3.6269,2499.5,2499.4,0.28013]
[1730554141164,0.4191,2499.5,2499.4,0.28013]
[1730554141469,3.6269,2499.5,2499.4,0.28013]
[1730554142760,0.4191,2499.5,2499.4,0.28013]
[1730554144260,3.04073673,2499.5,2499.4,2.27583825]
[1730554144464,0.4191,2499.5,2499.4,2.27583825]
[1730554145058,2.51632657,2499.5,2499.4,2.27583825]
[1730554145261,2.51609438,2499.5,2499.4,2.27583825]
[1730554145559,2.62163673,2499.6,2499.4,1.99570825]
[1730554145755,2.62163673,2499.6,2499.5,0.28012]
[1730554145955,3.51476071,2499.7,2499.6,0.28011]
[1730554146661,3.51476071,2499.7,2499.6,1.72200033]
[1730554147561,3.51476071,2499.7,2499.6,0.28011]
[1730554148161,0.8936,2499.7,2499.6,0.28011]
[1730554148364,3.51476071,2499.7,2499.6,0.28011]
[1730554148669,0.8936,2499.7,2499.6,0.28011]
[1730554149173,2.98960174,2499.7,2499.6,0.28011]
[1730554149472,0.8936,2499.7,2499.6,0.28011]
[1730554151158,0.8936,2499.7,2499.3,2.34259033]
[1730554151357,0.28014,2499.3,2499.1,3.48796]
[1730554151557,4.62206231,2499.2,2499.0,0.01]
[1730554151755,2.37610896,2499.1,2499.0,0.01]
[1730554151959,8.59865104,2499.2,2499.0,0.01]
[1730554152167,3.94896071,2499.2,2499.1,0.28017]
[1730554153763,3.94896071,2499.2,2499.0,0.01]
[1730554153965,2.09674846,2499.1,2499.0,0.29017]
[1730554154162,3.94896071,2499.2,2499.0,0.29017]
[1730554154360,7.43691071,2499.2,2499.0,0.29017]
[1730554154666,8.59865104,2499.2,2499.0,0.29017]
[1730554155065,8.87881104,2499.2,2499.0,0.29017]
[1730554155564,2.62116071,2499.1,2499.0,0.29017]
[1730554157256,2.90133071,2499.1,2499.0,0.01]
[1730554157461,2.76969033,2499.2,2499.0,0.01]
[1730554157758,0.28017,2499.1,2499.0,0.01]
[1730554158373,2.76969033,2499.2,2499.0,0.01]
[1730554158567,3.04986033,2499.2,2499.0,0.01]
[1730554159374,3.04986033,2499.2,2499.0,0.29018]
[1730554159564,3.04986033,2499.2,2499.0,0.01]
[1730554159565,0.28017,2499.1,2499.0,0.01]
[1730554160274,3.04985033,2499.2,2499.0,0.01]
[1730554160472,0.28017,2499.1,2499.0,0.01]
[1730554161074,2.76969033,2499.2,2499.0,0.01]
[1730554161265,0.28017,2499.1,2499.0,0.01]
[1730554161772,4.0016,2499.1,2499.0,0.01]
[1730554162471,4.28177,2499.1,2499.0,0.01]
[1730554162674,4.0016,2499.1,2499.0,0.29018]
[1730554163063,4.0016,2499.1,2499.0,0.01]
[1730554163473,4.28177,2499.1,2499.0,0.01]
[1730554164178,2.76969033,2499.2,2499.0,0.01]
[1730554164474,3.04985033,2499.2,2499.0,0.29018]
[1730554164672,2.76969033,2499.2,2499.0,0.01]
[1730554164875,3.04985033,2499.2,2499.0,0.29018]
[1730554165669,1.3278,2499.2,2499.1,0.28017]
[1730554166376,1.60795,2499.2,2499.1,0.28017]
[1730554166565,1.3278,2499.2,2499.1,0.28017]
[1730554169077,1.60795,2499.2,2499.1,0.28017]
[1730554169271,1.3278,2499.2,2499.1,0.28017]
[1730554170175,2.76969033,2499.2,2499.1,0.28017]
[1730554170374,3.04984033,2499.2,2499.1,0.28017]
[1730554170682,7.05144033,2499.2,2499.1,0.28017]
[1730554171077,6.77129033,2499.2,2499.0,0.01]
[1730554171382,0.28017,2499.1,2499.0,0.29017]
[1730554171980,0.28017,2499.1,2499.0,0.01]
[1730554172683,0.28017,2499.1,2499.0,0.29018]
[1730554173887,0.28017,2499.1,2499.0,0.01]
[1730554173888,3.48797,2499.1,2499.0,0.01]
[1730554175086,3.48797,2499.1,2499.0,0.29018]
[1730554179282,6.10706072,2499.1,2499.0,0.29018]
[1730554179483,3.48797,2499.1,2499.0,0.29018]
[1730554180587,2.61894492,2499.1,2499.0,0.29018]
[1730554181393,2.89911492,2499.1,2499.0,0.29018]
[1730554181595,6.10691492,2499.1,2499.0,0.29018]
[1730554183687,2.61894492,2499.1,2499.0,0.29018]
[1730554184092,2.09484727,2499.1,2499.0,0.29018]
[1730554184291,2.09484727,2499.1,2499.0,1.17128]
[1730554184690,2.09484727,2499.1,2499.0,0.8911]
[1730554184991,2.09484727,2499.2,2499.1,0.28017]
[1730554185789,2.09484727,2499.3,2499.1,5.72366033]
[1730554185991,1.57102521,2499.2,2499.1,1.72206033]
[1730554186195,1.57102521,2499.2,2499.1,5.72366033]
[1730554188694,1.57102521,2499.3,2499.2,0.28015]
[1730554191795,1.57102521,2499.5,2499.2,0.55341406]
[1730554191992,1.57102521,2499.5,2499.4,0.28013]
[1730554192396,1.57102521,2499.5,2499.4,1.18793]
[1730554192599,2.09484727,2499.6,2499.5,0.28012]
[1730554193599,2.55304727,2499.7,2499.4,0.9078]
[1730554193796,1.5711002,2499.5,2499.4,1.18793]
[1730554193998,1.5711002,2499.5,2499.4,1.74126787]
[1730554194302,1.5711002,2499.5,2499.4,5.74206787]
[1730554195300,1.5711002,2499.5,2499.4,5.74208882]
[1730554195496,1.5711002,2499.5,2499.4,5.18873]
[1730554195699,1.5711002,2499.5,2499.4,5.74218268]
[1730554196102,1.5711002,2499.5,2499.4,5.18873]
[1730554196407,1.5711002,2499.5,2499.4,5.74213701]
[1730554197806,1.5711002,2499.5,2499.4,1.18793]
[1730554198008,1.57135605,2499.5,2499.4,1.18793]
[1730554198202,2.09484727,2499.6,2499.4,0.9078]
[1730554198500,2.09484727,2499.6,2499.5,0.28012]
[1730554203613,3.9949376,2499.7,2499.6,0.28011]
[1730554204112,3.99409581,2499.7,2499.6,0.28011]
[1730554204702,1.90009033,2499.7,2499.6,0.28011]
[1730554204911,3.99398987,2499.7,2499.6,0.28011]
[1730554205304,3.99395809,2499.7,2499.6,0.28011]
[1730554205713,1.90009033,2499.7,2499.6,0.28011]
[1730554207009,1.90009033,2499.7,2499.4,0.9078]
[1730554207208,3.53569269,2499.5,2499.3,0.28014]
[1730554207503,2.55240236,2499.4,2499.3,0.28014]
[1730554207704,3.44790236,2499.4,2499.3,0.28014]
[1730554210112,1.63423,2499.4,2499.2,0.28015]
[1730554210317,3.81638279,2499.3,2499.2,0.28015]
[1730554210517,3.53624279,2499.3,2499.2,0.28015]
[1730554212204,3.53624279,2499.3,2498.9,2.79339033]
[1730554212205,0.28016,2499.2,2499.0,0.29017]
[1730554212403,1.44189033,2499.1,2499.0,0.29017]
[1730554212601,1.88689033,2499.1,2499.0,0.29017]
[1730554213008,1.88689033,2499.1,2499.0,0.01]
[1730554213206,7.99380525,2499.1,2499.0,0.01]
[1730554213408,7.49380525,2499.1,2499.0,0.01]
[1730554213815,4.87486033,2499.1,2499.0,0.01]
[1730554214818,8.87646033,2499.1,2499.0,0.01]
[1730554215715,8.87646033,2499.1,2499.0,0.29018]
[1730554215912,8.87646033,2499.1,2499.0,0.01]
[1730554217514,8.59629033,2499.1,2498.7,0.28021]
[1730554217816,1.44189033,2498.8,2498.7,0.28021]
[1730554218205,4.06006976,2498.8,2498.5,3.2078]
[1730554218406,3.53649073,2498.6,2498.5,3.48803]
[1730554218815,3.53649073,2498.6,2498.5,0.28023]
[1730554218816,7.62499073,2498.6,2498.5,0.28023]
[1730554219016,8.14856976,2498.6,2498.5,0.28023]
[1730554219209,8.14856976,2498.6,2498.2,3.57362525]
[1730554219414,3.53635336,2498.5,2498.1,1.15689]
[1730554219612,3.53635336,2498.5,2498.2,0.28027]
[1730554219613,1.57083619,2498.3,2498.2,0.28027]
[1730554220014,3.53635336,2498.4,2498.1,0.4562]
[1730554220015,3.53635336,2498.4,2498.3,0.28026]
[1730554220522,3.53635336,2498.4,2498.2,0.28026]
[1730554220523,3.81660336,2498.4,2498.2,0.28026]
[1730554220712,0.4234,2498.3,2498.2,0.28026]
[1730554220914,1.99347751,2498.3,2498.2,0.28026]
[1730554221218,0.4234,2498.3,2498.2,0.28026]
[1730554221413,1.86529033,2498.3,2498.2,0.28026]
[1730554221615,3.43492603,2498.3,2498.2,0.28026]
[1730554221918,1.86529033,2498.3,2498.2,0.28026]
[1730554222619,3.43448056,2498.3,2498.2,0.28026]
[1730554223222,3.43449309,2498.3,2498.2,0.28026]
[1730554223519,5.35335033,2498.3,2498.1,0.28027]
[1730554223721,2.43609269,2498.2,2498.1,0.28027]
[1730554223923,2.43609269,2498.2,2497.9,0.4188]
[1730554224112,2.43609269,2498.2,2497.9,0.2803]
[1730554224113,3.01068302,2498.0,2497.9,0.2803]
[1730554224513,3.44428302,2498.0,2497.9,0.2803]
[1730554225518,2.43609269,2498.2,2497.8,1.44189033]
[1730554225823,4.06006976,2498.4,2498.0,1.44189033]
[1730554225824,3.29093302,2498.4,2498.0,1.44189033]
[1730554226022,0.4555,2498.3,2498.2,0.28027]
[1730554226623,0.4555,2498.3,2498.2,0.70817]
[1730554230223,0.73576,2498.3,2498.2,0.70817]